[Event "Titled Tuesday Blitz September 13 Late 2022"]
[White "Gascon Del Nogal, Jose Rafael"]
[Black "Mikhailov, Viacheslav"]
[WhiteFideId "3902463"]
[BlackFideId "4187369"]
[WhiteElo "2473"]
[BlackElo "2381"]
[Result "0-1"]
[Round "09"]
[TimeControl "180+1"]
[Date "2022.09.13"]
[WhiteClock "0:00:27"]
[BlackClock "0:01:26"]

1. d4 {[%clk 0:03:00]}  c5 {[%clk 0:02:59]} 2. d5 {[%clk 0:03:01]}  e5 {[%clk 0:03:00]} 3. Nc3 {[%clk 0:03:00]}  d6 {[%clk 0:03:00]} 4. e4 {[%clk 0:03:00]}  a6 {[%clk 0:03:00]} 5. f4 {[%clk 0:03:00]}  exf4 {[%clk 0:03:00]} 6. Bxf4 {[%clk 0:02:55]}  Ne7 {[%clk 0:03:01]} 7. Nf3 {[%clk 0:02:49]}  Ng6 {[%clk 0:03:01]} 8. Bg3 {[%clk 0:02:50]}  Be7 {[%clk 0:03:01]} 9. Bd3 {[%clk 0:02:43]}  Bg4 {[%clk 0:03:01]} 10. O-O {[%clk 0:02:26]}  Nd7 {[%clk 0:03:00]} 11. Be2 {[%clk 0:02:24]}  Bxf3 {[%clk 0:02:57]} 12. gxf3 {[%clk 0:02:24]}  O-O {[%clk 0:02:56]} 13. f4 {[%clk 0:02:20]}  Bf6 {[%clk 0:02:49]} 14. e5 {[%clk 0:01:57]}  dxe5 {[%clk 0:02:48]} 15. f5 {[%clk 0:01:57]}  Nf4 {[%clk 0:02:48]} 16. Ne4 {[%clk 0:01:53]}  Bg5 {[%clk 0:02:42]} 17. c4 {[%clk 0:01:49]}  Bh6 {[%clk 0:02:36]} 18. Kh1 {[%clk 0:01:37]}  Nf6 {[%clk 0:02:12]} 19. Bh4 {[%clk 0:01:37]}  Kh8 {[%clk 0:02:03]} 20. Bf3 {[%clk 0:01:14]}  Rg8 {[%clk 0:01:51]} 21. a3 {[%clk 0:00:56]}  Qb6 {[%clk 0:01:50]} 22. Bxf6 {[%clk 0:00:49]}  gxf6 {[%clk 0:01:51]} 23. Qc2 {[%clk 0:00:40]}  Rg7 {[%clk 0:01:43]} 24. Rg1 {[%clk 0:00:39]}  Rag8 {[%clk 0:01:43]} 25. Rxg7 {[%clk 0:00:39]}  Rxg7 {[%clk 0:01:42]} 26. Rd1 {[%clk 0:00:40]}  Nh3 {[%clk 0:01:36]} 27. d6 {[%clk 0:00:38]}  Qc6 {[%clk 0:01:30]} 28. d7 {[%clk 0:00:34]}  Qxd7 {[%clk 0:01:30]} 29. Ng5 {[%clk 0:00:27]}  Rxg5 {[%clk 0:01:26]} 0-1


[Site "https://www.chess.com"]

[Event "Titled Tuesday Blitz September 13 Late 2022"]
[White "Gomez Ledo, Roberto Carlos"]
[Black "Makarian, Rudik"]
[WhiteFideId "3507076"]
[BlackFideId "44105681"]
[WhiteElo "2379"]
[BlackElo "2410"]
[Result "0-1"]
[Round "09"]
[TimeControl "180+1"]
[Date "2022.09.13"]
[WhiteClock "0:00:06"]
[BlackClock "0:00:09"]

1. d4 {[%clk 0:03:00]}  Nf6 {[%clk 0:03:00]} 2. Bf4 {[%clk 0:02:59]}  g6 {[%clk 0:03:01]} 3. Nc3 {[%clk 0:02:59]}  Bg7 {[%clk 0:03:02]} 4. e4 {[%clk 0:02:58]}  d6 {[%clk 0:03:02]} 5. Qd2 {[%clk 0:02:57]}  h6 {[%clk 0:02:59]} 6. h4 {[%clk 0:02:47]}  Nc6 {[%clk 0:02:50]} 7. O-O-O {[%clk 0:02:46]}  Nh5 {[%clk 0:02:38]} 8. Be3 {[%clk 0:02:44]}  e5 {[%clk 0:02:38]} 9. Nge2 {[%clk 0:02:42]}  Bd7 {[%clk 0:02:28]} 10. f3 {[%clk 0:02:36]}  exd4 {[%clk 0:02:27]} 11. Nxd4 {[%clk 0:02:35]}  Ng3 {[%clk 0:02:28]} 12. Rg1 {[%clk 0:02:33]}  Nxf1 {[%clk 0:02:28]} 13. Rgxf1 {[%clk 0:02:33]}  Qxh4 {[%clk 0:02:28]} 14. Rh1 {[%clk 0:02:29]}  Qd8 {[%clk 0:02:27]} 15. Nxc6 {[%clk 0:02:28]}  Bxc6 {[%clk 0:02:26]} 16. Bxh6 {[%clk 0:02:25]}  Rxh6 {[%clk 0:02:21]} 17. Rxh6 {[%clk 0:02:24]}  Bxh6 {[%clk 0:02:22]} 18. Qxh6 {[%clk 0:02:24]}  Qf6 {[%clk 0:02:22]} 19. Qh3 {[%clk 0:02:04]}  Ke7 {[%clk 0:02:11]} 20. Rh1 {[%clk 0:02:00]}  Re8 {[%clk 0:02:06]} 21. Qh4 {[%clk 0:01:56]}  Qxh4 {[%clk 0:02:05]} 22. Rxh4 {[%clk 0:01:57]}  Kf6 {[%clk 0:02:05]} 23. Kd2 {[%clk 0:01:54]}  a5 {[%clk 0:02:04]} 24. a4 {[%clk 0:01:52]}  Kg7 {[%clk 0:01:59]} 25. b3 {[%clk 0:01:50]}  f5 {[%clk 0:01:59]} 26. exf5 {[%clk 0:01:43]}  gxf5 {[%clk 0:02:00]} 27. Ne2 {[%clk 0:01:41]}  b6 {[%clk 0:01:48]} 28. Nf4 {[%clk 0:01:40]}  Re7 {[%clk 0:01:42]} 29. Rh5 {[%clk 0:01:37]}  Kf6 {[%clk 0:01:37]} 30. Rh8 {[%clk 0:01:32]}  Kg5 {[%clk 0:01:28]} 31. Nh3+ {[%clk 0:01:29]}  Kf6 {[%clk 0:01:28]} 32. Nf4 {[%clk 0:01:29]}  Rf7 {[%clk 0:01:22]} 33. Ke3 {[%clk 0:01:24]}  Ke7 {[%clk 0:01:18]} 34. Ng6+ {[%clk 0:01:21]}  Kf6 {[%clk 0:01:14]} 35. Nf4 {[%clk 0:01:18]}  Ke7 {[%clk 0:01:15]} 36. Ng6+ {[%clk 0:01:18]}  Kd7 {[%clk 0:01:14]} 37. Kf4 {[%clk 0:01:14]}  Bd5 {[%clk 0:01:12]} 38. Nh4 {[%clk 0:01:11]}  Be6 {[%clk 0:01:11]} 39. Rh5 {[%clk 0:01:05]}  Rg7 {[%clk 0:01:01]} 40. g3 {[%clk 0:01:04]}  Re7 {[%clk 0:00:53]} 41. c4 {[%clk 0:00:49]}  d5 {[%clk 0:00:40]} 42. Nxf5 {[%clk 0:00:48]}  Rf7 {[%clk 0:00:40]} 43. g4 {[%clk 0:00:28]}  dxc4 {[%clk 0:00:39]} 44. bxc4 {[%clk 0:00:28]}  Bxc4 {[%clk 0:00:40]} 45. g5 {[%clk 0:00:28]}  b5 {[%clk 0:00:24]} 46. g6 {[%clk 0:00:27]}  Rf8 {[%clk 0:00:24]} 47. axb5 {[%clk 0:00:26]}  a4 {[%clk 0:00:24]} 48. g7 {[%clk 0:00:23]}  Rg8 {[%clk 0:00:23]} 49. Ke5 {[%clk 0:00:15]}  a3 {[%clk 0:00:22]} 50. Kf6 {[%clk 0:00:14]}  a2 {[%clk 0:00:22]} 51. Rh1 {[%clk 0:00:14]}  Ra8 {[%clk 0:00:16]} 52. Ra1 {[%clk 0:00:12]}  Rb8 {[%clk 0:00:11]} 53. Nh6 {[%clk 0:00:10]}  Rb6+ {[%clk 0:00:09]} 54. Kg5 {[%clk 0:00:10]}  Rxb5+ {[%clk 0:00:10]} 55. Kg6 {[%clk 0:00:09]}  Rb1 {[%clk 0:00:10]} 56. Rxa2 {[%clk 0:00:06]}  Bxa2 {[%clk 0:00:11]} 57. f4 {[%clk 0:00:06]}  Rg1+ {[%clk 0:00:10]} 58. Kh7 {[%clk 0:00:06]}  Ke7 {[%clk 0:00:10]} 59. f5 {[%clk 0:00:06]}  Kf6 {[%clk 0:00:09]} 0-1


[Site "https://www.chess.com"]

[Event "Titled Tuesday Blitz September 13 Late 2022"]
[White "Ibarra Jerez, Jose Carlos"]
[Black "Pranav, V"]
[WhiteFideId "2226332"]
[BlackFideId "25060783"]
[WhiteElo "2627"]
[BlackElo "2390"]
[Result "0-1"]
[Round "09"]
[TimeControl "180+1"]
[Date "2022.09.13"]
[WhiteClock "0:00:01"]
[BlackClock "0:00:32"]

1. Nf3 {[%clk 0:03:00]}  Nf6 {[%clk 0:02:58]} 2. g3 {[%clk 0:03:01]}  d5 {[%clk 0:02:57]} 3. Bg2 {[%clk 0:03:00]}  c6 {[%clk 0:02:58]} 4. O-O {[%clk 0:03:00]}  Bg4 {[%clk 0:02:58]} 5. h3 {[%clk 0:03:00]}  Bxf3 {[%clk 0:02:58]} 6. Bxf3 {[%clk 0:03:00]}  Nbd7 {[%clk 0:02:58]} 7. d3 {[%clk 0:03:00]}  e6 {[%clk 0:02:59]} 8. e4 {[%clk 0:02:56]}  Bc5 {[%clk 0:02:59]} 9. Bg2 {[%clk 0:02:52]}  Bb6 {[%clk 0:02:58]} 10. exd5 {[%clk 0:02:36]}  cxd5 {[%clk 0:02:55]} 11. c4 {[%clk 0:02:36]}  O-O {[%clk 0:02:49]} 12. Nc3 {[%clk 0:02:36]}  dxc4 {[%clk 0:02:48]} 13. dxc4 {[%clk 0:02:36]}  Qc7 {[%clk 0:02:48]} 14. Bf4 {[%clk 0:02:03]}  Qxc4 {[%clk 0:02:45]} 15. Bxb7 {[%clk 0:01:58]}  Rad8 {[%clk 0:02:43]} 16. Qa4 {[%clk 0:01:37]}  Qc5 {[%clk 0:02:28]} 17. Rad1 {[%clk 0:01:29]}  Qh5 {[%clk 0:02:25]} 18. Bg2 {[%clk 0:01:20]}  e5 {[%clk 0:02:13]} 19. Bc1 {[%clk 0:01:14]}  Nc5 {[%clk 0:02:11]} 20. Qc4 {[%clk 0:01:12]}  Ne6 {[%clk 0:02:10]} 21. Rxd8 {[%clk 0:00:47]}  Rxd8 {[%clk 0:02:11]} 22. Re1 {[%clk 0:00:46]}  Nd4 {[%clk 0:02:07]} 23. Be3 {[%clk 0:00:39]}  h6 {[%clk 0:02:03]} 24. a4 {[%clk 0:00:26]}  Ba5 {[%clk 0:01:40]} 25. b4 {[%clk 0:00:20]}  Nc2 {[%clk 0:01:39]} 26. Rc1 {[%clk 0:00:09]}  Nxe3 {[%clk 0:01:34]} 27. fxe3 {[%clk 0:00:10]}  Bb6 {[%clk 0:01:35]} 28. Re1 {[%clk 0:00:11]}  Qg5 {[%clk 0:01:35]} 29. Kf2 {[%clk 0:00:11]}  Rd2+ {[%clk 0:01:31]} 30. Kf1 {[%clk 0:00:06]}  Qxg3 {[%clk 0:01:21]} 31. Re2 {[%clk 0:00:07]}  Rxe2 {[%clk 0:01:16]} 32. Qxe2 {[%clk 0:00:05]}  Bxe3 {[%clk 0:00:47]} 33. Qf3 {[%clk 0:00:06]}  Qxf3+ {[%clk 0:00:46]} 34. Bxf3 {[%clk 0:00:06]}  Bd2 {[%clk 0:00:46]} 35. Na2 {[%clk 0:00:07]}  e4 {[%clk 0:00:45]} 36. Bg2 {[%clk 0:00:06]}  Kf8 {[%clk 0:00:39]} 37. Ke2 {[%clk 0:00:06]}  e3 {[%clk 0:00:39]} 38. a5 {[%clk 0:00:05]}  Nh5 {[%clk 0:00:37]} 39. Bf3 {[%clk 0:00:02]}  Nf4+ {[%clk 0:00:37]} 40. Kd1 {[%clk 0:00:02]}  Nxh3 {[%clk 0:00:36]} 41. a6 {[%clk 0:00:02]}  Nf4 {[%clk 0:00:34]} 42. b5 {[%clk 0:00:03]}  Ba5 {[%clk 0:00:34]} 43. Nb4 {[%clk 0:00:03]}  Bxb4 {[%clk 0:00:32]} 44. b6 {[%clk 0:00:03]}  Bc5 {[%clk 0:00:32]} 45. b7 {[%clk 0:00:01]}  Bd6 {[%clk 0:00:32]} 0-1


[Site "https://www.chess.com"]

[Event "Titled Tuesday Blitz September 13 Late 2022"]
[White "Jobava, Baadur"]
[Black "Ivic, Velimir"]
[WhiteFideId "13601520"]
[BlackFideId "950122"]
[WhiteElo "2582"]
[BlackElo "2625"]
[Result "1-0"]
[Round "09"]
[TimeControl "180+1"]
[Date "2022.09.13"]
[WhiteClock "0:00:19"]
[BlackClock "0:00:13"]

1. e4 {[%clk 0:02:56]}  c5 {[%clk 0:02:59]} 2. c3 {[%clk 0:02:55]}  d5 {[%clk 0:02:58]} 3. exd5 {[%clk 0:02:56]}  Nf6 {[%clk 0:02:58]} 4. d4 {[%clk 0:02:56]}  cxd4 {[%clk 0:02:58]} 5. Nf3 {[%clk 0:02:56]}  Nxd5 {[%clk 0:02:58]} 6. cxd4 {[%clk 0:02:54]}  Nc6 {[%clk 0:02:56]} 7. Nc3 {[%clk 0:02:55]}  e6 {[%clk 0:02:56]} 8. Bd3 {[%clk 0:02:54]}  Be7 {[%clk 0:02:55]} 9. O-O {[%clk 0:02:55]}  O-O {[%clk 0:02:56]} 10. Re1 {[%clk 0:02:55]}  Nf6 {[%clk 0:02:55]} 11. a3 {[%clk 0:02:53]}  b6 {[%clk 0:02:55]} 12. Bc2 {[%clk 0:02:53]}  Ba6 {[%clk 0:02:52]} 13. h4 {[%clk 0:02:43]}  Rc8 {[%clk 0:02:50]} 14. Bg5 {[%clk 0:02:43]}  h6 {[%clk 0:02:48]} 15. Bf4 {[%clk 0:02:23]}  Na5 {[%clk 0:02:39]} 16. d5 {[%clk 0:02:10]}  exd5 {[%clk 0:02:27]} 17. Bf5 {[%clk 0:02:09]}  Rc4 {[%clk 0:02:16]} 18. Be5 {[%clk 0:01:54]}  Bc8 {[%clk 0:02:01]} 19. Bxc8 {[%clk 0:01:31]}  Rxc8 {[%clk 0:01:58]} 20. Bxf6 {[%clk 0:01:26]}  Bxf6 {[%clk 0:01:59]} 21. Nxd5 {[%clk 0:01:26]}  Nc4 {[%clk 0:01:36]} 22. b3 {[%clk 0:01:05]}  Bxa1 {[%clk 0:01:04]} 23. Ne7+ {[%clk 0:01:05]}  Kh8 {[%clk 0:01:05]} 24. Qxa1 {[%clk 0:01:05]}  Nd6 {[%clk 0:00:48]} 25. Nxc8 {[%clk 0:01:01]}  Qxc8 {[%clk 0:00:49]} 26. Rd1 {[%clk 0:00:49]}  Ne4 {[%clk 0:00:48]} 27. Qd4 {[%clk 0:00:48]}  Nf6 {[%clk 0:00:48]} 28. Ne5 {[%clk 0:00:46]}  Qc2 {[%clk 0:00:41]} 29. Qd3 {[%clk 0:00:40]}  Qb2 {[%clk 0:00:37]} 30. Nc4 {[%clk 0:00:34]}  Qa2 {[%clk 0:00:37]} 31. a4 {[%clk 0:00:29]}  Re8 {[%clk 0:00:29]} 32. Nd6 {[%clk 0:00:26]}  Re2 {[%clk 0:00:28]} 33. Nxf7+ {[%clk 0:00:22]}  Kg8 {[%clk 0:00:26]} 34. Qg6 {[%clk 0:00:22]}  Rd2 {[%clk 0:00:12]} 35. Nxh6+ {[%clk 0:00:21]}  Kh8 {[%clk 0:00:12]} 36. Nf7+ {[%clk 0:00:22]}  Kg8 {[%clk 0:00:13]} 37. Rc1 {[%clk 0:00:19]} 1-0


[Site "https://www.chess.com"]

[Event "Titled Tuesday Blitz September 13 Late 2022"]
[White "Kravtsiv, Martyn"]
[Black "Tari, Aryan"]
[WhiteFideId "14113147"]
[BlackFideId "1510045"]
[WhiteElo "2694"]
[BlackElo "2612"]
[Result "1-0"]
[Round "09"]
[TimeControl "180+1"]
[Date "2022.09.13"]
[WhiteClock "0:00:11"]
[BlackClock "0:00:03"]

1. e4 {[%clk 0:03:00]}  c6 {[%clk 0:02:59]} 2. Nf3 {[%clk 0:03:00]}  d5 {[%clk 0:02:59]} 3. d3 {[%clk 0:03:01]}  Qc7 {[%clk 0:02:53]} 4. Nc3 {[%clk 0:02:59]}  dxe4 {[%clk 0:02:53]} 5. Nxe4 {[%clk 0:02:59]}  Nf6 {[%clk 0:02:53]} 6. Qe2 {[%clk 0:02:59]}  Nbd7 {[%clk 0:02:49]} 7. g3 {[%clk 0:02:59]}  Nxe4 {[%clk 0:02:46]} 8. Qxe4 {[%clk 0:02:59]}  Nf6 {[%clk 0:02:46]} 9. Qe2 {[%clk 0:02:59]}  Bg4 {[%clk 0:02:41]} 10. Bg2 {[%clk 0:02:58]}  e6 {[%clk 0:02:42]} 11. h3 {[%clk 0:02:53]}  Bh5 {[%clk 0:02:41]} 12. Bf4 {[%clk 0:02:43]}  Bd6 {[%clk 0:02:39]} 13. Bxd6 {[%clk 0:02:43]}  Qxd6 {[%clk 0:02:40]} 14. g4 {[%clk 0:02:43]}  Bg6 {[%clk 0:02:35]} 15. Ne5 {[%clk 0:02:43]}  Nd5 {[%clk 0:02:25]} 16. Bxd5 {[%clk 0:02:41]}  Qxd5 {[%clk 0:02:20]} 17. f3 {[%clk 0:02:31]}  f6 {[%clk 0:02:12]} 18. Nc4 {[%clk 0:02:10]}  h5 {[%clk 0:02:05]} 19. O-O-O {[%clk 0:02:09]}  b5 {[%clk 0:01:45]} 20. Na5 {[%clk 0:02:08]}  Qxa2 {[%clk 0:01:42]} 21. Nxc6 {[%clk 0:02:03]}  Bf7 {[%clk 0:01:00]} 22. Qe4 {[%clk 0:01:49]}  Rc8 {[%clk 0:00:52]} 23. Kd2 {[%clk 0:01:10]}  Qa6 {[%clk 0:00:41]} 24. Nd4 {[%clk 0:01:01]}  O-O {[%clk 0:00:41]} 25. gxh5 {[%clk 0:00:58]}  Qa5+ {[%clk 0:00:36]} 26. c3 {[%clk 0:00:52]}  b4 {[%clk 0:00:36]} 27. c4 {[%clk 0:00:45]}  Qxh5 {[%clk 0:00:29]} 28. Rdg1 {[%clk 0:00:43]}  Rfe8 {[%clk 0:00:16]} 29. Rg3 {[%clk 0:00:38]}  e5 {[%clk 0:00:10]} 30. Nf5 {[%clk 0:00:35]}  g6 {[%clk 0:00:10]} 31. Nd6 {[%clk 0:00:31]}  Rcd8 {[%clk 0:00:11]} 32. Nxe8 {[%clk 0:00:31]}  Bxe8 {[%clk 0:00:09]} 33. Rhg1 {[%clk 0:00:28]}  Rd4 {[%clk 0:00:08]} 34. Qa8 {[%clk 0:00:18]}  Kf8 {[%clk 0:00:05]} 35. Qxa7 {[%clk 0:00:17]}  Qh6+ {[%clk 0:00:05]} 36. Ke2 {[%clk 0:00:14]}  Qf4 {[%clk 0:00:03]} 37. Qc5+ {[%clk 0:00:14]}  Kg8 {[%clk 0:00:03]} 38. Rxg6+ {[%clk 0:00:12]}  Bxg6 {[%clk 0:00:03]} 39. Rxg6+ {[%clk 0:00:13]}  Kh7 {[%clk 0:00:04]} 40. Rg2 {[%clk 0:00:13]}  Rd7 {[%clk 0:00:03]} 41. Qc6 {[%clk 0:00:13]}  Qf5 {[%clk 0:00:03]} 42. Qe4 {[%clk 0:00:13]}  Qxe4+ {[%clk 0:00:03]} 43. fxe4 {[%clk 0:00:13]}  b3 {[%clk 0:00:03]} 44. Kd2 {[%clk 0:00:13]}  f5 {[%clk 0:00:03]} 45. exf5 {[%clk 0:00:12]}  e4 {[%clk 0:00:03]} 46. Rg3 {[%clk 0:00:13]}  Kh6 {[%clk 0:00:02]} 47. Kc3 {[%clk 0:00:12]}  exd3 {[%clk 0:00:02]} 48. Rxd3 {[%clk 0:00:12]}  Rf7 {[%clk 0:00:03]} 49. Rf3 {[%clk 0:00:12]}  Kg5 {[%clk 0:00:03]} 50. Kxb3 {[%clk 0:00:12]}  Kf6 {[%clk 0:00:03]} 51. Kc3 {[%clk 0:00:12]}  Re7 {[%clk 0:00:03]} 52. b4 {[%clk 0:00:12]}  Re1 {[%clk 0:00:04]} 53. b5 {[%clk 0:00:12]}  Rc1+ {[%clk 0:00:04]} 54. Kb4 {[%clk 0:00:12]}  Rb1+ {[%clk 0:00:05]} 55. Kc5 {[%clk 0:00:12]}  Rf1 {[%clk 0:00:03]} 56. Rxf1 {[%clk 0:00:11]} 1-0


[Site "https://www.chess.com"]

[Event "Titled Tuesday Blitz September 13 Late 2022"]
[White "Maksimovic, Bojan"]
[Black "Mirzoev, Azer"]
[WhiteFideId "14408120"]
[BlackFideId "13400304"]
[WhiteElo "2447"]
[BlackElo "2525"]
[Result "1-0"]
[Round "09"]
[TimeControl "180+1"]
[Date "2022.09.13"]
[WhiteClock "0:00:13"]
[BlackClock "0:00:03"]

1. e4 {[%clk 0:02:57]}  Nf6 {[%clk 0:03:00]} 2. e5 {[%clk 0:02:55]}  Nd5 {[%clk 0:03:00]} 3. d4 {[%clk 0:02:56]}  d6 {[%clk 0:03:01]} 4. Nf3 {[%clk 0:02:57]}  dxe5 {[%clk 0:03:00]} 5. Nxe5 {[%clk 0:02:57]}  c6 {[%clk 0:03:01]} 6. Be2 {[%clk 0:02:57]}  Nd7 {[%clk 0:03:01]} 7. Nf3 {[%clk 0:02:57]}  N7f6 {[%clk 0:03:01]} 8. O-O {[%clk 0:02:57]}  Bg4 {[%clk 0:02:59]} 9. Nbd2 {[%clk 0:02:57]}  e6 {[%clk 0:02:59]} 10. Re1 {[%clk 0:02:57]}  Be7 {[%clk 0:02:58]} 11. Nf1 {[%clk 0:02:57]}  O-O {[%clk 0:02:51]} 12. Ng3 {[%clk 0:02:57]}  Nh5 {[%clk 0:02:51]} 13. Nf1 {[%clk 0:02:54]}  Nhf4 {[%clk 0:02:50]} 14. h3 {[%clk 0:02:40]}  Nxe2+ {[%clk 0:02:48]} 15. Qxe2 {[%clk 0:02:41]}  Bh5 {[%clk 0:02:48]} 16. Ng3 {[%clk 0:02:41]}  Bg6 {[%clk 0:02:45]} 17. Ne5 {[%clk 0:02:41]}  Bd6 {[%clk 0:02:40]} 18. Nxg6 {[%clk 0:02:41]}  hxg6 {[%clk 0:02:40]} 19. Ne4 {[%clk 0:02:42]}  Be7 {[%clk 0:02:38]} 20. c3 {[%clk 0:02:38]}  Re8 {[%clk 0:02:37]} 21. Bd2 {[%clk 0:02:38]}  a5 {[%clk 0:02:36]} 22. a4 {[%clk 0:02:35]}  Qc7 {[%clk 0:02:29]} 23. Bg5 {[%clk 0:02:28]}  Bxg5 {[%clk 0:02:21]} 24. Nxg5 {[%clk 0:02:29]}  Rad8 {[%clk 0:02:20]} 25. Rad1 {[%clk 0:02:26]}  Nf6 {[%clk 0:02:20]} 26. Qe5 {[%clk 0:02:22]}  Qb6 {[%clk 0:02:13]} 27. Qe2 {[%clk 0:02:22]}  Qb3 {[%clk 0:02:11]} 28. Ra1 {[%clk 0:02:21]}  Rd5 {[%clk 0:01:58]} 29. Nf3 {[%clk 0:02:21]}  Qb6 {[%clk 0:01:57]} 30. Ne5 {[%clk 0:02:19]}  Qc7 {[%clk 0:01:44]} 31. Nc4 {[%clk 0:02:19]}  Red8 {[%clk 0:01:40]} 32. Rad1 {[%clk 0:02:15]}  Nh7 {[%clk 0:01:12]} 33. Ne5 {[%clk 0:02:13]}  Nf8 {[%clk 0:01:07]} 34. Rd3 {[%clk 0:02:10]}  Nh7 {[%clk 0:00:45]} 35. Rdd1 {[%clk 0:01:50]}  Nf6 {[%clk 0:00:44]} 36. Rd3 {[%clk 0:01:35]}  R5d6 {[%clk 0:00:44]} 37. Nc4 {[%clk 0:01:34]}  Rd5 {[%clk 0:00:44]} 38. Re3 {[%clk 0:01:35]}  c5 {[%clk 0:00:41]} 39. dxc5 {[%clk 0:01:30]}  Qxc5 {[%clk 0:00:41]} 40. Re5 {[%clk 0:01:30]}  Rxe5 {[%clk 0:00:27]} 41. Nxe5 {[%clk 0:01:31]}  Qc7 {[%clk 0:00:25]} 42. Nc4 {[%clk 0:01:22]}  Nd5 {[%clk 0:00:20]} 43. Rd1 {[%clk 0:01:15]}  Nf4 {[%clk 0:00:15]} 44. Rxd8+ {[%clk 0:01:15]}  Qxd8 {[%clk 0:00:15]} 45. Qd2 {[%clk 0:01:15]}  Nd5 {[%clk 0:00:14]} 46. Qd4 {[%clk 0:01:14]}  Qc7 {[%clk 0:00:13]} 47. Nd2 {[%clk 0:01:05]}  Nf6 {[%clk 0:00:12]} 48. Nb3 {[%clk 0:01:02]}  b6 {[%clk 0:00:11]} 49. Nd2 {[%clk 0:01:02]}  Qc6 {[%clk 0:00:11]} 50. b3 {[%clk 0:00:53]}  Qc7 {[%clk 0:00:10]} 51. g3 {[%clk 0:00:39]}  Nd5 {[%clk 0:00:10]} 52. Nc4 {[%clk 0:00:39]}  g5 {[%clk 0:00:10]} 53. Kf1 {[%clk 0:00:38]}  g6 {[%clk 0:00:10]} 54. Ke2 {[%clk 0:00:38]}  Qc6 {[%clk 0:00:10]} 55. Kd2 {[%clk 0:00:37]}  Qc7 {[%clk 0:00:10]} 56. Kc2 {[%clk 0:00:37]}  Qc6 {[%clk 0:00:10]} 57. Kb2 {[%clk 0:00:38]}  Qc7 {[%clk 0:00:10]} 58. Qe5 {[%clk 0:00:37]}  Qc6 {[%clk 0:00:09]} 59. Qb8+ {[%clk 0:00:36]}  Kg7 {[%clk 0:00:09]} 60. Qe5+ {[%clk 0:00:36]}  f6 {[%clk 0:00:10]} 61. Qd6 {[%clk 0:00:34]}  Qxd6 {[%clk 0:00:09]} 62. Nxd6 {[%clk 0:00:35]}  Kf8 {[%clk 0:00:09]} 63. c4 {[%clk 0:00:34]}  Nb4 {[%clk 0:00:09]} 64. Kc3 {[%clk 0:00:29]}  Na2+ {[%clk 0:00:09]} 65. Kd4 {[%clk 0:00:28]}  Nb4 {[%clk 0:00:09]} 66. Nc8 {[%clk 0:00:28]}  Nc6+ {[%clk 0:00:08]} 67. Kc3 {[%clk 0:00:27]}  e5 {[%clk 0:00:08]} 68. Nxb6 {[%clk 0:00:26]}  Ke7 {[%clk 0:00:08]} 69. Nd5+ {[%clk 0:00:26]}  Ke6 {[%clk 0:00:08]} 70. b4 {[%clk 0:00:26]}  axb4+ {[%clk 0:00:09]} 71. Nxb4 {[%clk 0:00:27]}  Nd4 {[%clk 0:00:09]} 72. a5 {[%clk 0:00:26]}  Kd7 {[%clk 0:00:08]} 73. c5 {[%clk 0:00:25]}  f5 {[%clk 0:00:07]} 74. Kc4 {[%clk 0:00:25]}  g4 {[%clk 0:00:06]} 75. hxg4 {[%clk 0:00:26]}  fxg4 {[%clk 0:00:07]} 76. a6 {[%clk 0:00:26]}  Kc7 {[%clk 0:00:07]} 77. Kd5 {[%clk 0:00:21]}  Nf3 {[%clk 0:00:06]} 78. c6 {[%clk 0:00:19]}  Nd2 {[%clk 0:00:05]} 79. Kxe5 {[%clk 0:00:17]}  Kb6 {[%clk 0:00:03]} 80. Kf4 {[%clk 0:00:13]} 1-0


[Site "https://www.chess.com"]

[Event "Titled Tuesday Blitz September 13 Late 2022"]
[White "Martinez Ramirez, Lennis"]
[Black "Shirov, Alexei"]
[WhiteFideId "3509079"]
[BlackFideId "2209390"]
[WhiteElo "2374"]
[BlackElo "2678"]
[Result "0-1"]
[Round "09"]
[TimeControl "180+1"]
[Date "2022.09.13"]
[WhiteClock "0:00:03"]
[BlackClock "0:00:15"]

1. d4 {[%clk 0:03:00]}  d5 {[%clk 0:02:59]} 2. Nf3 {[%clk 0:02:59]}  Nf6 {[%clk 0:02:58]} 3. c4 {[%clk 0:02:59]}  c6 {[%clk 0:02:58]} 4. e3 {[%clk 0:02:56]}  Bf5 {[%clk 0:02:57]} 5. Nc3 {[%clk 0:02:54]}  e6 {[%clk 0:02:56]} 6. Nh4 {[%clk 0:02:53]}  Be4 {[%clk 0:02:56]} 7. f3 {[%clk 0:02:51]}  Bg6 {[%clk 0:02:56]} 8. Qb3 {[%clk 0:02:47]}  Qc7 {[%clk 0:02:55]} 9. g3 {[%clk 0:02:43]}  Be7 {[%clk 0:02:35]} 10. Bd2 {[%clk 0:02:41]}  Bh5 {[%clk 0:02:33]} 11. Be2 {[%clk 0:02:29]}  dxc4 {[%clk 0:02:29]} 12. Qxc4 {[%clk 0:02:27]}  Nd5 {[%clk 0:02:24]} 13. Ng2 {[%clk 0:01:57]}  Nd7 {[%clk 0:02:22]} 14. Rc1 {[%clk 0:01:55]}  N7b6 {[%clk 0:02:07]} 15. Qb3 {[%clk 0:01:53]}  O-O {[%clk 0:02:02]} 16. O-O {[%clk 0:01:44]}  Bg5 {[%clk 0:01:55]} 17. h4 {[%clk 0:01:19]}  Nxc3 {[%clk 0:01:27]} 18. bxc3 {[%clk 0:01:04]}  Qxg3 {[%clk 0:01:08]} 19. hxg5 {[%clk 0:00:52]}  Qxg5 {[%clk 0:01:07]} 20. Qd1 {[%clk 0:00:44]}  Bg6 {[%clk 0:01:04]} 21. e4 {[%clk 0:00:43]}  Qa5 {[%clk 0:01:03]} 22. Rc2 {[%clk 0:00:40]}  e5 {[%clk 0:01:00]} 23. c4 {[%clk 0:00:31]}  Qa4 {[%clk 0:00:56]} 24. dxe5 {[%clk 0:00:31]}  Rad8 {[%clk 0:00:54]} 25. Qc1 {[%clk 0:00:30]}  Nd7 {[%clk 0:00:50]} 26. Bc3 {[%clk 0:00:27]}  Nc5 {[%clk 0:00:49]} 27. Rd2 {[%clk 0:00:26]}  Ne6 {[%clk 0:00:44]} 28. Rfd1 {[%clk 0:00:25]}  Rxd2 {[%clk 0:00:43]} 29. Rxd2 {[%clk 0:00:25]}  c5 {[%clk 0:00:44]} 30. Bd3 {[%clk 0:00:20]}  Qc6 {[%clk 0:00:33]} 31. Re2 {[%clk 0:00:19]}  Nd4 {[%clk 0:00:32]} 32. Bxd4 {[%clk 0:00:18]}  cxd4 {[%clk 0:00:32]} 33. f4 {[%clk 0:00:18]}  Bh5 {[%clk 0:00:32]} 34. Rf2 {[%clk 0:00:18]}  b5 {[%clk 0:00:30]} 35. Rc2 {[%clk 0:00:15]}  b4 {[%clk 0:00:25]} 36. c5 {[%clk 0:00:15]}  a5 {[%clk 0:00:24]} 37. Rc4 {[%clk 0:00:15]}  Bf3 {[%clk 0:00:22]} 38. Qb2 {[%clk 0:00:14]}  Bxe4 {[%clk 0:00:21]} 39. Qxd4 {[%clk 0:00:12]}  Bxg2 {[%clk 0:00:20]} 40. Qd6 {[%clk 0:00:10]}  Bd5 {[%clk 0:00:18]} 41. Qxc6 {[%clk 0:00:09]}  Bxc6 {[%clk 0:00:18]} 42. Be4 {[%clk 0:00:10]}  Rc8 {[%clk 0:00:17]} 43. Bf5 {[%clk 0:00:09]}  Rc7 {[%clk 0:00:17]} 44. Kf2 {[%clk 0:00:07]}  g6 {[%clk 0:00:17]} 45. Bd3 {[%clk 0:00:05]}  Bd5 {[%clk 0:00:16]} 46. Rc2 {[%clk 0:00:03]}  a4 {[%clk 0:00:15]} 0-1


[Site "https://www.chess.com"]